Cogmind - Beta 13 @@@ ROGUE MODE // 2024.03.03 @ 16:28:24 Player: cptwinky Result: Destroyed by BS-PP2(R) with Subdweller Machine Gun Performance ------------- Evolutions (0) 0 Regions Visited (2) 400 Robots Destroyed (13) 65 Value Destroyed (422) 422 Prototype IDs (0) 0 Alien Tech Used (0) 0 Bonus (0) 0 TOTAL SCORE: 887 Bonus ------- None Cogmind --------- Core Integrity 0/250 Matter 268/300 Energy 250/250 System Corruption 0% Temperature Cool (0) Movement Rolling (125) Ox3 Location -10/Subcaves Parts ------- > --- POWER (1) -------- Ion Engine > --- PROPULSION (2) --- Wheel > --- UTILITY (2) ------ Large Storage Unit Light Armor Plating > --- WEAPON (2) ------- Assault Rifle Ripper > --- INVENTORY (15) --- Huge Storage Unit Light Armor Plating Hacking Suite Cobbler Unit Light Assault Rifle Light Assault Rifle Light Assault Rifle Light Assault Rifle Light Assault Rifle Light Assault Rifle Subdweller Machine Gun Battle Cannon Subdweller Shrapnel Launcher Piercing Trap Peak State ------------ > --- POWER ------------ Ion Engine > --- PROPULSION ------- Wheel Wheel > --- UTILITY ---------- Large Storage Unit Light Armor Plating > --- WEAPON ----------- Assault Rifle Ripper > --- INVENTORY -------- Improved Heat Sink Huge Storage Unit Light Armor Plating Hacking Suite Light Assault Rifle Light Assault Rifle Light Assault Rifle Light Assault Rifle Light Assault Rifle Light Assault Rifle Subdweller Machine Gun Subdweller Machine Gun Subdweller Shrapnel Launcher [Rating: 12] Favorites ----------- Power Ion Engine Engine Ion Engine Propulsion Light Treads Treads Light Treads Leg Aluminum Leg Wheel Wheel Utility Large Storage Unit Storage Large Storage Unit Protection Light Armor Plating Weapon Assault Rifle Energy Gun Medium Laser Ballistic Gun Assault Rifle Ballistic Cannon Light Cannon Slashing Weapon Ripper Build | -11 -10 -10 ------- Run | Yrd Mat Sub Slots Evolved . | . . . Power . | . . . Propulsion . | . . . Utility . | . . . Weapon . | . . . Parts Attached 21 | 2 4 15 Power 2 | . 1 1 Engine 2 | . 1 1 Core . | . . . Reactor . | . . . Propulsion 5 | 2 . 3 Treads 2 | 2 . . Leg . | . . . Wheel 3 | . . 3 Hover . | . . . Flight . | . . . Utility 4 | . 2 2 Device . | . . . Storage 1 | . 1 . Processor . | . . . Hackware . | . . . Protection 3 | . 1 2 Artifact . | . . . Weapon 10 | . 1 9 Energy Gun 1 | . . 1 Energy Cannon . | . . . Ballistic Gun 6 | . . 6 Ballistic Cannon 1 | . 1 . Launcher . | . . . Special Weapon . | . . . Impact Weapon . | . . . Slashing Weapon 2 | . . 2 Piercing Weapon . | . . . Special Melee Weapon . | . . . Unidentified Prototypes . | . . . Parts Lost 7 | . . 7 Power 1 | . . 1 Propulsion 3 | . . 3 Utility 2 | . . 2 Weapon 1 | . . 1 Highest Loss Streak 3 | . . 3 To Critical Strikes . | . . . Average Slot Usage (%) 98 | . 95 99 Engine 14 | . 14 14 Treads 16 | . 28 12 Wheel 10 | . . 14 Storage 14 | . 14 14 Protection 12 | . 9 14 Energy Gun 7 | . 14 5 Ballistic Gun 13 | . 5 15 Ballistic Cannon 5 | . 8 4 Slashing Weapon 1 | . . 2 Naked Turns . | . . . Heaviest Build 36 | 11 33 36 Greatest Support 40 | 40 40 40 Greatest Overweight (x) 3 | . . 3 Average Overweight (x) 1 | . . 1 Largest Inventory Capacity 15 | 8 15 15 Average Capacity 14 | 8 13 15 Most Carried 15 | 6 15 15 Average Carried 12 | 5 11 13 Final Capacity 15 | 8 15 15 Final Carried 15 | 4 15 15 Class Distribution -------------------- 100% | Mutant Dominant Class ---------------- Mutant | -10/Materials Mutant | -10/Subcaves Resources | -11 -10 -10 ----------- Run | Yrd Mat Sub Matter Collected 613 | 200 54 359 Remotely . | . . . Salvage Created 397 | . 53 344 Parts 22 | . 9 13 Haulers Intercepted . | . . . Recyclers Shooed . | . . . Parts Field Recycled . | . . . Retrieved Matter . | . . . Parts Self-Destructed 9 | . . 9 Prevented . | . . . Kills | -11 -10 -10 ------- Run | Yrd Mat Sub Combat Hostiles Destroyed 9 | . . 9 Guns 6 | . . 6 Cannons 3 | . . 3 Classes Destroyed 6 | . 3 3 Mechanic 1 | . 1 . Operator 1 | . 1 . Watcher 2 | . 2 . Grunt 2 | . . 2 Cobbler 1 | . . 1 Subdweller 7 | . . 7 Best Kill Streak 2 | . 2 2 Combat Bots Only 2 | . . 2 Max Kills in Single Turn 1 | . 1 1 Gunslinging . | . . . Exploded . | . . . Melee . | . . . Uniques/NPCs Destroyed . | . . . Combat | -11 -10 -10 -------- Run | Yrd Mat Sub Hostile Shots Fired 92 | . . 92 Missed 27 | . . 27 Damage Taken 1287 | . . 1287 Core 271 | . . 271 Absorbed by Shields . | . . . Core Remaining (%) 100 | 100 . . Volleys Fired 95 | . 20 75 Largest 2 | . 2 2 Hottest 95 | . 85 95 Shots Fired 160 | . 39 121 Gun 127 | . 33 94 Cannon 33 | . 6 27 Launcher . | . . . Special . | . . . Kinetic 110 | . 20 90 Thermal 50 | . 19 31 Explosive . | . . . Electromagnetic . | . . . Robot Hit Streak 24 | . 5 24 Robot Miss Streak 6 | . 6 1 Penetration Max . | . . . Secondary Targets 1 | . . 1 Max Gunslinging Chain 1 | . . 1 Shots Hit Robots 97 | . 22 75 Core Hits 30 | . 9 21 Critical Kills . | . . . Critical Parts Destroyed 1 | . . 1 Critical Strikes 5 | . . 5 Burn 2 | . . 2 Destroy 1 | . . 1 Blast 2 | . . 2 Melee Attacks 12 | . . 12 Impact . | . . . Slashing 12 | . . 12 Piercing . | . . . Sneak Attacks . | . . . Combat Hostiles . | . . . Follow-up Attacks . | . . . Damage Inflicted 1618 | . 272 1346 Guns 1124 | . 192 932 Cannons 467 | . 53 414 Explosions . | . . . Melee . | . . . Ramming 27 | . 27 . Kinetic 1019 | . 121 898 Thermal 572 | . 124 448 Explosive . | . . . Electromagnetic . | . . . Impact . | . . . Slashing . | . . . Piercing . | . . . Highest Corruption . | . . . Average Corruption . | . . . Corruption Purged . | . . . Corruption Blocked . | . . . Overload Shots . | . . . Overflow Damage 16 | . . 16 Projectiles 16 | . . 16 Explosions . | . . . Melee . | . . . Knockbacks 8 | . 2 6 Impact . | . . . Kinetic 8 | . 2 6 Secondary . | . . . Self-Inflicted Damage . | . . . Shots . | . . . Rammed 5 | . 5 . Targets Rammed 5 | . 5 . Kicked . | . . . Crushed . | . . . Highest Temperature 273 | . 167 273 Average Temperature 66 | . 52 109 Received Heat Transfer 609 | . . 609 Effects 2 | . . 2 Interference 2 | . . 2 Siege Activations . | . . . Robots Corrupted . | . . . Combat Hostiles . | . . . Parts Fried . | . . . Impact Corruptions . | . . . Robots Melted . | . . . Combat Hostiles . | . . . Parts Melted 1 | . . 1 Heat Transferred 1300 | . 370 930 Parts Sabotaged . | . . . Parts Stolen . | . . . Parts Stripped . | . . . Power Chain Reactions . | . . . Alert | -11 -10 -10 ------- Run | Yrd Mat Sub Peak Influence 49 | . 49 . Initial . | . . . Average 23 | . 23 . Maximum Alert Level . | . . . Low Security (%) 100 | 100 100 . Level 1 . | . . . Level 2 . | . . . Level 3 . | . . . Level 4 . | . . . Level 5 . | . . . High Security . | . . . Max Security . | . . . Squads Dispatched 1 | . 1 . Investigation . | . . . Extermination . | . . . Reinforcement 1 | . 1 . Assault . | . . . Garrison . | . . . Intercept . | . . . Searches Triggered . | . . . Construction Impeded . | . . . Haulers Reinforced . | . . . Active Scanning Responses . | . . . Cargo Convoy Interrupts . | . . . Stealth | -11 -10 -10 --------- Run | Yrd Mat Sub Distress Signals . | . . . Communications Jammed . | . . . Distress Signals . | . . . Times Spotted 25 | . 9 16 Peak Tracking Total 2 | . 2 2 Tactical Retreats 2 | . . 2 Traps | -11 -10 -10 ------- Run | Yrd Mat Sub Traps Triggered 1 | . . 1 Indirectly . | . . . Trap Hack Attempts . | . . . Triggered . | . . . Disarmed . | . . . Reprogrammed . | . . . Reused . | . . . Traps Extracted . | . . . Installed . | . . . Triggered . | . . . Most Traps Carried 1 | . . 1 Machines | -11 -10 -10 ---------- Run | Yrd Mat Sub Machines Disabled . | . . . Max in Single Turn . | . . . Machines Repaired . | . . . Machines Dismantled . | . . . Machines Sabotaged . | . . . Overloaded Fab Kills . | . . . Hacking | -11 -10 -10 --------- Run | Yrd Mat Sub Machines Accessed 3 | . 3 . Terminals 3 | . 3 . Fabricators . | . . . Repair Stations . | . . . Recycling Units . | . . . Scanalyzers . | . . . Garrison Access . | . . . Total Hacks 8 | . 8 . Successful 3 | . 3 . Failed 4 | . 4 . Catastrophic . | . . . Database Lockouts 1 | . 1 . Manual 7 | . 7 . Terminals 8 | . 8 . Fabricators . | . . . Repair Stations . | . . . Recycling Units . | . . . Scanalyzers . | . . . Garrison Access . | . . . Terminal Hacks 3 | . 3 . Robot Analysis 2 | . 2 . Registered Components 1 | . 1 . Fabricator Hacks . | . . . Repair Station Hacks . | . . . Recycling Unit Hacks . | . . . Scanalyzer . | . . . Garrison Access Hacks . | . . . Unauthorized Hacks . | . . . Terminals . | . . . Fabricators . | . . . Repair Stations . | . . . Recycling Units . | . . . Scanalyzers . | . . . Garrison Access . | . . . Data Cores Recovered . | . . . Used . | . . . Hacking Detections 3 | . 3 . Full Trace Events . | . . . Feedback Events . | . . . Feedback Blocked . | . . . Robot Schematics Acquired . | . . . Robots Built . | . . . Authchips . | . . . Time . | . . . Total Robot Build Rating . | . . . Part Schematics Acquired . | . . . Parts Built . | . . . Authchips . | . . . Time . | . . . Total Part Build Rating . | . . . Parts Repaired . | . . . Time . | . . . Parts Recycled . | . . . Recycled Matter . | . . . Retrieved Matter . | . . . Retrieved Components . | . . . Parts Scanalyzed . | . . . Part Schematics Acquired . | . . . Parts Damaged . | . . . Bothacking | -11 -10 -10 ------------ Run | Yrd Mat Sub Used RIF Installer . | . . . Robots Hacked . | . . . Non-combat . | . . . Combat . | . . . Robot Hacks Applied . | . . . Relay Couplers Released . | . . . Fabnet Peak Effective % . | . . . Robots Rewired . | . . . Allies Hacked . | . . . Hacks Repelled . | . . . Allies | -11 -10 -10 -------- Run | Yrd Mat Sub Total Allies . | . . . Largest Group . | . . . Highest-Rated Group . | . . . Highest-Rated Ally . | . . . Total Orders . | . . . Ally Attacks . | . . . Total Damage . | . . . Kills . | . . . Allies Corrupted . | . . . Allies Melted . | . . . Intel | -11 -10 -10 ------- Run | Yrd Mat Sub Robot Analysis Total 2 | . 2 . Derelict Logs Recovered 1 | . . 1 Drone Launches . | . . . Drone Recoveries . | . . . Exploration | -11 -10 -10 ------------- Run | Yrd Mat Sub Turns Passed 3171 | 5 819 2347 Spaces Moved 1802 | 1 355 1446 Core . | . . . Treads 687 | 1 355 331 Legs . | . . . Wheels 1115 | . . 1115 Hover . | . . . Flight . | . . . Fastest Speed 95 | 160 160 95 Average Speed 130 | 160 160 123 Slowest Speed 240 | 160 160 240 Overloaded Moves . | . . . Propulsion Burnouts . | . . . Robots Hopped . | . . . Cave-ins Triggered . | . . . Exploration Rate (%) 40 | 2 45 73 Regions Visited 2 Branch Regions 1 Pre-discovered Areas 2 | . . 2 Known Exits Taken . | . . . Unknown Exits Taken 2 | 1 1 . Scrap Searched 1 | . . 1 Spaces Dug 8 | . . 8 Terrain Destroyed 8 | . . 8 Melee 8 | . . 8 Projectile . | . . . AOE . | . . . Terrain Rammed . | . . . Walls Destroyed . | . . . Machines Disabled . | . . . Actions | -11 -10 -10 --------- Run | Yrd Mat Sub Total 2439 | 4 568 1867 Wait 470 | . 164 306 Move 1800 | . 354 1446 Hop . | . . . Pick Up 21 | . 14 7 Fast Attach 5 | . 3 2 Attach 6 | . . 6 Detach 2 | . 1 1 Swap 10 | 2 1 7 Drop 13 | 2 6 5 Fire 95 | . 20 75 Melee 12 | . . 12 Ram . | . . . Kick . | . . . Crush 5 | . 5 . Escape Stasis . | . . . Rewire . | . . . Trap . | . . . Miscellaneous . | . . . Route ------- -11/Scrapyard -10/Materials (discovered 2 exits: [*Mat] / [*Sub]) -10/Subcaves (discovered 2 exits: [*Mat] / [*Rec]) History --------- Turn | Location | Event 6 | -11/Scrapyard | Discovered new exit (range 0) 6 | -11/Scrapyard | Entered Materials 276 | -10/Materials | Discovered new exit (range 10) 321 | -10/Materials | Build established: Mutant 528 | -10/Materials | Central database locked down 792 | -10/Materials | Discovered new exit (range 5) 825 | -10/Materials | Entered Subcaves 1103 | -10/Subcaves | A swath of the cavern ceiling suddenly collapsed 1163 | -10/Subcaves | Discovered new exit (range 7) 1419 | -10/Subcaves | Discovered new exit (range 12) 1478 | -10/Subcaves | Lost 3 parts (1p1n1u) 1679 | -10/Subcaves | A swath of the cavern ceiling suddenly collapsed 1725 | -10/Subcaves | Core integrity fell below 50% 1734 | -10/Subcaves | Core integrity fell below 20% 1852 | -10/Subcaves | Learned location of Zion (-6) 1852 | -10/Subcaves | Met a Zionite searching for "candidates" 3172 | -10/Subcaves | Destroyed by BS-PP2(R) with Subdweller Machine Gun Last Messages --------------- 02469_ Sub. Machine Gun shoots sparks and powers down. 02503_ PE-7CR(u) builds Twisted Machinery. 02521_ PE-7CR(u) tweaks Twisted Machinery. 02548_ Acquired Ripper. 02596_ PE-7CR(u) tweaks Twisted Machinery. 02817_ PE-7CR(u) deconstructs Twisted Machinery. 02919_ Acquired 16 matter. 02987_ U6-PHP(O) cries out in pain. 02987_ U6-PHP(O) destroyed. 02992_ Acquired 52 matter. 02994_ Acquired Cobbler Unit. 02995_ Dropped Imp. Heat Sink. 02996_ Dropped Broken Sub. Machine Gun. 02999_ Dropped Wheel. 03001_ Acquired Battle Cannon. 03005_ Acquired Piercing Trap. 03062_ 8Y-1F8(u) builds Twisted Machinery. 03078_ BS-PP2(R): "SUBHATE!" 03093_ Acquired 3 matter. 03106_ Wheel destroyed. Map ----- +----------------------------------------------------+ | #????????????????????????????????# | | # ###???????????????????????????????# | | ## ##?????????????????????????????????# | | ?## &##?????????????????????????????????# | | ??# &&%#?????????????????????????????????### | | ### ]&##???##??????????????????????????????? | | # !#??? ????????????????????????????? | | # #??# ?????????????????????????????? | | ## ### #?????????????????????????????? | | ?# #?????????????????????????????? | | ?# #### #??????????????????????????????? | | ## ##?### ##??????????????????????????????? | | ###?## ##???????????????????????????????? | | #### " #????????????????????????????????? | | "" #?##????????????????????????????? | | ## ##"" ## #????????????????????????????? | | ### ###""" #????????????????????????????? | | #"# ### " "#????????????????????????????? | | #"# """"""" #?????????????????????????????? | | #### """" ####????????????????????#####??? | | #??# ### ## """" #""###?????????????????## #### | | ##?####?##### R """#??#########??????# ## | | ##########?#"## "####* ######## | | #?###### # #&##### ## ## | | #??????### #&%#???# # | | ######????????##### @&&#???## """ # | | #????????????????# #????# #####"#"###" | | ####????????????????### # ##???# ##?########" | | #?????????????????????### ##### < #?#"#?###"" | | #???????????????????????# ##??"#???#"# | | ##???????????????????????######## ##?##"####### | | ##??????????????????????????????# ###?##"#""##""# | | #???????????????????????????????# #####""#"##"##" | | #???????????????????????????????# ##""##""" ""#" | | #???????????????????????????????# #""#"#"""####" | | #???????????????????????????????## ""#######??## | | #????????????????????????????????## ###?????????? | | #?????????????????????????????????# #???????????? | | #?????????????????????????????????####???????????? | | #????????????????????????????????????????????????? | | #????????????????????????????????????????????????? | | ##???????????????????????????????????????????????? | | "#???????????????????????????????????????????????? | | ##???????????????????????????????????????????????? | | #??????##????????????????????????????????????????? | | #????## ##???????????????????????????????????????? | | #????# #???????????????????????????????????????? | | #???## #???????????????????????????????????????? | | #??## " #???????????????????????????????????????? | | #?## #????????????????????????????????????????? | +----------------------------------------------------+ Best States ------------- Heat Dissipation 25 Energy Generation 10 Energy Capacity 250 Matter Stores 300 Matter Capacity 300 Sight Range 16 Terrain Scan Density 10 Armor Coverage 150 Evasion (%) 41 Recoil Reduction 2 Item Schematics ----------------- None Robot Schematics ------------------ None Fabricated ------------ Nothing Alien Tech Used ----------------- None Achievements -------------- None Challenges ------------ None Game ------ Seed MasterMyomerFlakker Manual? 0 Play Time 00:18:22 Cumulative 1488.3 hours Start 2024.03.03 @ 16:16:20 End 2024.03.03 @ 16:28:24 Sessions 1 Manual Loads 0 Difficulty Rogue Special Mode None Game No. 1035 Rogue 1031 Adventurer 4 Explorer 0 Win Type - Total 182 Types 133/11/12/8/2/1/3/8/4 Lore% 95 Gallery% 98 Achievement% 98 Wizard Run 0 Options --------- Layout 2 ASCII 0 Keyboard 1 Movement Vi Keybinds 0 Fullscreen 0 Font 24/Terminus Map View 59x48 Zoom Use 0% Tactical HUD 1 Map Filters NONE Filters NONE Steam 1 RUN: b04a71fa-eab4-42d9-82db-ad9104b6eff1